Workbook

Sheet 目錄
A1: 目錄
A2: A-1車廂意匠
A3: A-2車廂內裝
A4: A-3車廂外部
A5: A-4控制與其他

Sheet A-1車廂意匠
A1: A-1 車廂意匠
A2: 序號 | B2: 名稱 | C2: 編號 | D2: 規格/備註 | E2: 配置 | F2: 成本(NT) | G2: 定價 | H2: 單位 | I2: 備註 | J2: 定價*0.75 | K2: 利潤 | L2: % | M2: 定價*0.8 | N2: 利潤 | O2: %
A3: 1 | B3: 車廂意匠 | C3: MA002 | D3: 吊頂：MB005(鑽石銀烤漆+發紋不銹鋼+乳白透光板) 兩側側板：彩妝鋼板ML001+彩妝鋼板ML002 後側側板：彩妝鋼板ML001+彩妝鋼板ML002 前側側板：發紋不銹鋼 轎門：彩妝鋼板ML002 地板：PVC(MD001) | E3: 標配 | F3: 8527.68 | G3: 0 | H3: 台 | I3: 客梯 | J3: =G3*0.75 -> 0 | K3: =G3-F3 -> -8527.68 | L3: =K3/F3 -> -1 | M3: =G3*0.8 -> 0 | N3: =M3-F3 -> -8527.68 | O3: =N3/F3 -> -1
A4: 2 | B4: 車廂意匠 | C4: MA006 | D4: 吊頂：MB010(鏡面不銹鋼、透光軟膜) 兩側側板：鏡面不銹鋼蝕刻鍍黑鈦 後側側板：鏡面不銹鋼鍍黑鈦+彩妝鋼板 ML005 前側側板：鏡面不銹鋼鍍黑鈦 轎門：鏡面不銹鋼蝕刻鍍黑鈦 地板：大理石(MD011) | E4: 選配 | F4: 67840.12572 | G4: 120000 | H4: 台 | I4: 客梯 | J4: =G4*0.75 -> 90000 | K4: =G4-F4 -> 52159.87428 | L4: =K4/F4 -> 0.7688646464 | M4: =G4*0.8 -> 96000 | N4: =M4-F4 -> 28159.87428 | O4: =N4/F4 -> 0.4150917171
A5: 3 | B5: 車廂意匠 | C5: MA005 | D5: 吊顶：MB009(钻石银烤漆+乳白透光板) 两侧侧板：彩妆钢板ML002 后侧侧板：发纹不锈钢+镜面不锈钢 前侧侧板：发纹不锈钢 轿门：彩妆钢板ML002 地板：PVC(MD001) | E5: 選配 | F5: 1532.023778 | G5: 16000 | H5: 台 | I5: 客梯 | J5: 12000 | K5: 14467.97622 | L5: 9.443702136 | M5: 12800 | N5: 11267.97622 | O5: 7.354961709
A6: 4 | B6: 車廂意匠 | C6: MA007 | D6: 吊顶：MB012(镜面不锈钢、乳白透光板) 两侧侧板：发纹不锈钢+镜面不锈钢 后侧侧板：发纹不锈钢+镜面不锈钢 前侧侧板：发纹不锈钢 轿门：发纹不锈钢 地板：PVC(MD005) | E6: 選配 | F6: 12502.53874 | G6: 33600 | H6: 台 | I6: 客梯 | J6: 25200 | K6: 21097.46126 | L6: 1.68745418 | M6: 26880 | N6: 14377.46126 | O6: 1.149963344
A7: 5 | B7: 車廂意匠 | C7: MA008 | D7: 吊顶：MB011(镜面不锈钢镀黑钛、乳白透光板) 两侧侧板：镜面不锈钢镀黑钛+防火板 后侧侧板：镜面不锈钢镀黑钛+防火板 前侧侧板：镜面不锈钢镀黑钛 轿门：镜面不锈钢镀黑钛 地板：PVC(MD013) | E7: 選配 | F7: 0 | G7: 150000 | H7: 台 | I7: 客梯 | J7: 112500 | K7: 150000 | M7: 120000 | N7: 120000
A8: 6 | B8: 車廂意匠 | C8: MA017 | D8: 吊顶：MB010(RAL9005砂纹+乳白透光板) 两侧侧板：烤漆RAL9003砂纹+镜面不锈钢镀黑钛 后侧侧板：烤漆RAL9003砂纹+镜面不锈钢镀黑钛 前侧侧板：烤漆RAL9003砂纹 轿门：烤漆RAL9003砂纹 地板：PVC(MD005) | E8: 選配 | F8: 2640.96 | G8: 27300 | H8: 台 | I8: 小電梯 | J8: 20475 | K8: 24659.04 | L8: 9.337150127 | M8: 21840 | N8: 19199.04 | O8: 7.269720102
A9: 7 | B9: 車廂意匠 | C9: MA018 | D9: 吊顶：MB013(RAL9003砂纹+LED灯板) 两侧侧板：烤漆RAL9005砂纹+烤漆RAL9003砂纹+ 镜面不锈钢镀黑钛 后侧侧板：烤漆RAL9003砂纹+镜面不锈钢镀黑钛 前侧侧板：烤漆RAL9003砂纹 轿门：烤漆RAL9003砂纹 地板：PVC(MD005) | E9: 選配 | F9: 0 | G9: 10000 | H9: 台 | I9: 小電梯 | J9: 7500 | K9: 10000 | M9: 8000 | N9: 8000
A10: 8 | B10: 車廂意匠 | C10: MA019 | D10: 吊顶：MB014(RAL9003砂纹+LED灯板) 两侧侧板：彩妆钢板ML002+镜面不锈钢 后侧侧板：彩妆钢板ML002+镜面不锈钢 前侧侧板：发纹不锈钢 轿门：彩妆钢板ML002 地板：PVC(MD006) | E10: 標配 | F10: 17842.5 | G10: - | H10: 台 | I10: 小電梯
A11: 9 | B11: 車廂意匠 | C11: MA020 | D11: 吊顶：MB015(烤漆RAL1015+烤漆RAL9005+ LED方灯) 两侧侧板：彩妆钢板ML006 后侧侧板：彩妆钢板ML006+镜面饰条 前侧侧板：发纹不锈钢 轿门：彩妆钢板ML006 地板：PVC(MD001) | E11: 標配 | F11: 19651.5 | G11: - | H11: 台 | I11: 小電梯
A12: 10 | B12: 車廂意匠 | C12: MA021 | D12: 吊顶：MB011(镜面不锈钢镀黑钛+乳白透光板) 两侧侧板：镜面不锈钢镀黑钛+蚀刻香槟金镀色 后侧侧板：镜面不锈钢镀黑钛+蚀刻香槟金镀色 前侧侧板：镜面不锈钢镀黑钛 轿门：镜面不锈钢镀黑钛 地板：PVC(MD006) | E12: 選配 | F12: 45692.64 | G12: 92000 | H12: 台 | I12: 小電梯 | J12: 69000 | K12: 46307.36 | L12: 1.01345337 | M12: 73600 | N12: 27907.36 | O12: 0.6107626961

Sheet A-2車廂內裝
A1: A-2 車廂內裝
A2: 序號 | B2: 名稱 | C2: 編號 | D2: 規格/備註 | E2: 配置 | F2: 成本(NT) | G2: 定價
A3: A-2-1天井
A4: 1 | B4: 天井 | C4: MB001 | D4: 黑色烤漆、乳白透光板 | E4: 標配 | F4: 1440 | G4: 5000
A5: 2 | B5: 天井 | C5: MB002 | D5: 黑色烤漆、乳白透光板 | E5: 標配 | F5: 1438.439354 | G5: 5000
A6: 3 | B6: 天井 | C6: MB003 | D6: 烤漆鋼板、深灰烤漆鋼板、LED方燈 | E6: 標配 | F6: 0
A7: 4 | B7: 天井 | C7: MB004 | D7: 香檳色烤漆鋼板、乳白透光板、筒燈 | E7: 標配 | F7: 1400.048569 | G7: 2800
A8: 5 | B8: 天井 | C8: MB005 | D8: 鑽石銀烤漆鋼板邊框、發紋不銹鋼、乳白透光板、筒燈 | E8: 選配 | F8: 5203.4237 | G8: 10500
A9: 6 | B9: 天井 | C9: MB006 | D9: 鏡面不銹鋼、乳白透光板 | E9: 選配 | F9: 4676.164651 | G9: 10000
A10: 7 | B10: 天井 | C10: MB007 | D10: 黑色烤漆鋼板邊框、黑鈦鏡面不銹鋼、乳白透光板、筒燈 | E10: 選配 | F10: 6145.917487 | G10: 13000
A11: 8 | B11: 天井 | C11: MB008 | D11: 鑽石銀烤漆鋼板邊框、鏡面不銹鋼、乳白透光板、筒燈 | E11: 選配 | F11: 6145.917487 | G11: 13000
A12: 9 | B12: 天井 | C12: MB009 | D12: 鑽石銀烤漆鋼板、乳白透光板 | E12: 選配 | F12: 4006.404856 | G12: 8400
A13: 10 | B13: 天井 | C13: MB010 | D13: 鏡面不銹鋼、透光軟膜 | E13: 選配 | F13: 23924.24192 | G13: 45000
A14: 11 | B14: 天井 | C14: MB011 | D14: 鏡面不銹鋼鍍黑鈦、乳白透光板 | E14: 選配 | F14: 20217.99222 | G14: 45000
A15: 12 | B15: 天井 | C15: MB012 | D15: 鏡面不銹鋼、乳白透光板 | E15: 標配 | F15: 4006.404856 | G15: 8400
A16: 13 | B16: 天井 | C16: MB002 | D16: SUS304-1.2t發紋不銹鋼（標準：依巨龍標準） | E16: 加價 | F16: 4006.404856 | G16: 8400
A17: 14 | B17: 天井 | C17: MB009 | D17: SUS304-1.3t發紋不銹鋼（標準：依巨龍標準） | E17: 加價 | F17: 4006.404856 | G17: 8400
A18: 15 | B18: 天井 | C18: MB003 | D18: SUS304-1.4t發紋不銹鋼（標準：依巨龍標準） | E18: 加價 | F18: 7251.411504 | G18: 12500
A19: 16 | B19: 天井 | C19: MB001 | D19: SUS304-1.5t發紋不銹鋼（標準：依巨龍標準） | E19: 加價 | F19: 4006.404856 | G19: 8400
A20: 17 | B20: 天井 | C20: MB004 | D20: SUS304-1.6t發紋不銹鋼（標準：依巨龍標準） | E20: 加價 | F20: 5628.90818 | G20: 9500
A21: 18 | B21: 天井 | C21: MB002 | D21: 材質-SUS304-1.5t發紋不銹鋼 （標準：依巨龍標準） | E21: 加價 | F21: 4927.877973 | G21: 9500
A22: 19 | B22: 天井 | C22: MB009 | D22: 材質-SUS304-1.6t發紋不銹鋼 （標準：依巨龍標準） | E22: 加價 | F22: 4927.877973 | G22: 9500
A23: 20 | B23: 天井 | C23: MB003 | D23: 材質-SUS304-1.7t發紋不銹鋼 （標準：依巨龍標準） | E23: 加價 | F23: 8919.23615 | G23: 15500
A24: 21 | B24: 天井 | C24: MB001 | D24: 材質-SUS304-1.8t發紋不銹鋼 （標準：依巨龍標準） | E24: 加價 | F24: 4927.877973 | G24: 9500
A25: 22 | B25: 天井 | C25: MB004 | D25: 材質-SUS304-1.9t發紋不銹鋼 （標準：依巨龍標準） | E25: 加價 | F25: 6923.557062 | G25: 12500
A26: 23 | B26: 天井 | C26: MB002 | D26: 材質-SUS304-1.5t鏡面不銹鋼 （標準：依巨龍標準） | E26: 加價 | F26: 5363.415877 | G26: 11500
A27: 24 | B27: 天井 | C27: MB009 | D27: 材質-SUS304-1.6t鏡面不銹鋼 （標準：依巨龍標準） | E27: 加價 | F27: 5363.415877 | G27: 11500
A28: 25 | B28: 天井 | C28: MB003 | D28: 材質-SUS304-1.7t鏡面不銹鋼 （標準：依巨龍標準） | E28: 加價 | F28: 9698.762887 | G28: 17500
A29: 26 | B29: 天井 | C29: MB001 | D29: 材質-SUS304-1.8t鏡面不銹鋼 （標準：依巨龍標準） | E29: 加價 | F29: 5363.415877 | G29: 11500
A30: 27 | B30: 天井 | C30: MB004 | D30: 材質-SUS304-1.9t鏡面不銹鋼 （標準：依巨龍標準） | E30: 加價 | F30: 7042.933424 | G30: 12500
A31: A-2-2地板
A32: 28 | B32: 地板 | C32: MD001 | D32: PVC | E32: 標配 | F32: 0
A33: 29 | B33: 地板 | C33: MD002 | D33: PVC | E33: 標配 | F33: 0
A34: 30 | B34: 地板 | C34: MD003 | D34: PVC | E34: 標配 | F34: 0
A35: 31 | B35: 地板 | C35: MD004 | D35: PVC | E35: 選配 | F35: 2720.729596 | G35: 5200
A36: 32 | B36: 地板 | C36: MD005 | D36: PVC | E36: 選配 | F36: 2720.729596 | G36: 5200
A37: 33 | B37: 地板 | C37: MD006 | D37: PVC | E37: 選配 | F37: 2720.729596 | G37: 5200
A38: 34 | B38: 地板 | C38: MD007 | D38: PVC | E38: 選配 | F38: 2720.729596 | G38: 5200
A39: 35 | B39: 地板 | C39: MD008 | D39: PVC | E39: 選配 | F39: 2720.729596 | G39: 5200
A40: 36 | B40: 地板 | C40: MD009 | D40: PVC | E40: 選配 | F40: 1999.158372 | G40: 4200
A41: 37 | B41: 地板 | C41: MD010 | D41: PVC | E41: 選配 | F41: 3147.112593 | G41: 6500
A42: 38 | B42: 地板 | C42: MD011 | D42: 大理石 | E42: 選配 | F42: 16910.07374 | G42: 35000
A43: 39 | B43: 地板 | C43: MD012 | D43: 大理石 | E43: 選配 | F43: 16910.07374 | G43: 35000
A44: 40 | B44: 地板地磚貼付BY業主 | C44: 客梯 | D44: P6~P24人 | G44: 0
A45: 41 | B45: 地板 花紋不鏽鋼板 | C45: 客梯 | D45: P6~P13人 (一片式) | F45: =G45*0.6 -> 11772 | G45: 19620
A46: 42 | B46: 地板 花紋不鏽鋼板 | C46: 客梯 | D46: P15人 (一片式) | F46: =G46*0.6 -> 13554 | G46: 22590
A47: 43 | B47: 地板 花紋不鏽鋼板 | C47: 客梯 | D47: P17~P24人 (僅接合式) | F47: 20898 | G47: 34830
A48: 44 | B48: 地板_大理石貼付預留 | C48: 小電梯 | D48: P6~P8人 | F48: 5400 | G48: 9000
A49: 45 | B49: 地板_大理石貼付預留 | C49: 客梯 | D49: P9人 | F49: 8100 | G49: 13500
A50: 46 | B50: 地板_大理石貼付預留 | C50: 客梯 | D50: P10人(10停)(120M(含)以下) | F50: 21222 | G50: 35370
A51: 47 | B51: 地板_大理石貼付預留 | C51: 客梯 | D51: P11人(10停)(120M(含)以下) | F51: 21816 | G51: 36360
A52: 48 | B52: 地板_大理石貼付預留 | C52: 客梯 | D52: P12~15人(10停)(60~105m) | F52: 19602 | G52: 32670
A53: 49 | B53: 地板_大理石貼付預留 | C53: 客梯 | D53: P17人(60~105m) | F53: 8046 | G53: 13410
A54: 50 | B54: 地板_大理石貼付預留 | C54: 客梯 | D54: P20~24人(任何速度) | F54: 8478 | G54: 14130
A55: 51 | B55: 地板_大理石貼付預留 | C55: 客梯 | D55: P13人(120M) | F55: 7668 | G55: 12780
A56: 52 | B56: 地板_大理石貼付預留 | C56: 客梯 | D56: P15人(20停)(120M) | F56: 68256 | G56: 113760
A57: 53 | B57: 地板_大理石貼付預留 | C57: 客梯 | D57: P17人(120M) | F57: 7452 | G57: 12420
A58: 54 | B58: 地板_大理石貼付預留 | C58: 客梯 | D58: P13~17人(150M) | F58: 8316 | G58: 13860
A59: 55 | B59: 地板_石英磚貼付預留(10mm) | C59: 客梯 | D59: P6~P24人 | F59: 5886 | G59: 9810
A60: 56 | B60: 地板_大理石貼付預留 | C60: 客梯 | D60: P6~P24人(無機房用) | F60: 5508 | G60: 9180
A61: 57 | B61: 地板 花紋不鏽鋼板 (SH) | C61: 貨梯 | D61: 1000kg以內 | F61: 12312 | G61: 20520
A62: 58 | B62: 地板 花紋不鏽鋼板 (SH) | C62: 貨梯 | D62: 1500~2000kg | F62: 27810 | G62: 46350
A63: 59 | B63: 地板 花紋不鏽鋼板 (SH) | C63: 貨梯 | D63: 2500~3000kg | F63: 57942 | G63: 96570
A64: 60 | B64: 地板_車廂地毯(P-11人(含)以下) | C64: 客梯 | F64: 1836 | G64: 3060
A65: 61 | B65: 地板_車廂地毯(P-12人(含)以上) | C65: 客梯 | F65: 2214 | G65: 3690
A66: 62 | B66: 地板_3M地毯(P-11人(含)以下) | C66: 客梯 | F66: 2214 | G66: 3690
A67: 63 | B67: 地板_3M地毯(P-12人(含)以上) | C67: 客梯 | F67: 2970 | G67: 4950
A68: A-2-3操縱盤
A69: 64 | B69: 操縱盤 | C69: ME001 | D69: 主操縱盤 | E69: 標配 | F69: 0
A70: 65 | B70: 操縱盤 | C70: ME002 | D70: 主操縱盤 | E70: 選配 | F70: 0 | G70: 2500
A71: 66 | B71: 操縱盤 | C71: ME003 | D71: 主操縱盤 | E71: 選配 | F71: 57.98230088 | G71: 2500
A72: 67 | B72: 操縱盤 | C72: ME004 | D72: 主操縱盤 | E72: 選配 | F72: 151.6460177 | G72: 2500
A73: 68 | B73: 操縱盤 | C73: ME005 | D73: 主操縱盤在ME001基礎上追加語音呼梯 | E73: 選配 | F73: 2029.380531 | G73: 3990
A74: 69 | B74: 操縱盤 | C74: ME006 | D74: 側邊一體式操縱盤 | E74: 選配 | F74: 4370.973451 | G74: 8500
A75: 70 | B75: 操縱盤 | C75: ME007 | D75: 側邊一體式操縱盤在ME006基礎上追加盲文點字板 | E75: 選配 | F75: 4518.159292 | G75: 8700
A76: 71 | B76: 操縱盤 | C76: ME008 | D76: 一體式前側板用 | E76: 選配 | F76: 4616.283186 | G76: 8900
A77: 72 | B77: 操縱盤 | C77: ME009 | D77: 一體式前側板用在ME008基礎上追加盲文點字板 | E77: 選配 | F77: 4767.84 | G77: 9600
A78: 73 | B78: 操縱盤 | C78: ME010 | D78: 外掛式殘障用 | E78: 選配 | F78: 4089.982301 | G78: 8300
A79: 74 | B79: 操縱盤 | C79: ME011 | D79: 嵌入式殘障用 | E79: 選配 | F79: 4140.382301 | G79: 8800
A80: 75 | B80: 操縱盤 | C80: ME012 | D80: 外掛式附顯示殘障用 | E80: 選配 | F80: 4971.982301 | G80: 10000
A81: 76 | B81: 操縱盤 | C81: ME013 | D81: 嵌入式附顯示殘障用 | E81: 選配 | F81: 4921.582301 | G81: 10000
A82: 77 | B82: 操縱盤 | C82: ME014 | D82: 在ME002基礎上追加盲文點字板 | E82: 選配 | F82: 154.9911504 | G82: 1000
A83: 78 | B83: 操縱盤 | C83: ME015 | D83: 在ME003基礎上追加盲文點字板 | E83: 選配 | F83: 54.19115044 | G83: 3500
A84: 79 | B84: 操縱盤 | C84: ME016 | D84: 在ME001基礎上追加電話機鍵盤 | E84: 選配 | F84: 1033.2 | G84: 2500
A85: 80 | B85: 操縱盤 | C85: ME017 | D85: 在ME002基礎上追加電話機鍵盤 | E85: 選配 | F85: 1036.99115 | G85: 2500
A86: 81 | B86: 操縱盤 | C86: ME018 | D86: 在ME003基礎上追加電話機鍵盤 | E86: 選配 | F86: 1087.39115 | G86: 2500
A87: A-2-4扶手
A88: 82 | B88: 扶手 | C88: MC001 | D88: 不銹鋼扁平扶手 | E88: 選配 | F88: 1789.423009 | G88: 2500
A89: 83 | B89: 扶手 | C89: MC002 | D89: 不銹鋼圓形扶手 | E89: 選配 | F89: 1342.067257 | G89: 2500
A90: 84 | B90: 扶手 | C90: MC003 | D90: 不銹鋼彎管扶手 | E90: 選配 | F90: 1789.423009 | G90: 2500
A91: 85 | B91: 扶手 | C91: MC004 | D91: 不銹鋼紅木扶手 | E91: 選配 | F91: 2236.778761 | G91: 4000
A92: 86 | B92: 扶手 | C92: MC005 | D92: 鏡面黑鈦扶手 | E92: 選配 | F92: 2268 | G92: 5000
A93: 87 | B93: 扶手鍍鈦(遠東特殊色) | D93: 僅鍍鈦加工費 | F93: 1500 | G93: 1350
A94: A-2-5 車廂門與層門(轎門/層門)
A95: 88 | B95: 轎門2100mm （標準：噴塗或彩粧鋼板） | D95: SUS304-1.5t發紋不銹鋼 | E95: 加價 | F95: 2754 | G95: 5200
A96: 89 | B96: 轎門2100mm （標準：噴塗或彩粧鋼板） | D96: SUS304-1.2t發紋不銹鋼 | E96: 加價 | F96: 2292 | G96: 4800
A97: 90 | D97: SUS304-1.5t發紋不銹鋼 鍍鈦 | E97: 加價 | F97: 7106.334372 | G97: 11000
A98: 91 | D98: SUS304-1.5t鏡面不銹鋼 | E98: 加價 | F98: 3110.992566 | G98: 9470
A99: 92 | D99: SUS304-1.5t鏡面不銹鋼 鍍鈦 | E99: 加價 | F99: 7590.654287 | G99: 13250
A100: 93 | D100: SUS304-1.5t鏡面不銹鋼 蝕刻 | E100: 加價 | F100: 6517.296637 | G100: 13250
A101: 94 | D101: SUS304-1.5t鏡面不銹鋼 蝕刻 鍍鈦 | E101: 加價 | F101: 8775.274619 | G101: 16500
A102: 95 | D102: 四周包邊玻璃轎門SUS304-1.2t發紋不銹鋼 | E102: 加價 | F102: 12343.38053 | G102: 30500
A103: 96 | D103: 四周包邊玻璃轎門SUS304-1.5t鏡面不銹鋼 | E103: 加價 | F103: 15376.30088 | G103: 39500
A104: 97 | B104: 層門2100mm （標準：噴塗Q235A-1.5t） | D104: SUS304-1.5t發紋不銹鋼 | E104: 加價 | F104: 3396.784269 | G104: 5200
A105: 98 | D105: 噴塗Q235A-1.2t | E105: 加價 | F105: -239.0575221 | G105: 0
A106: 99 | D106: SUS304-1.2t發紋不銹鋼 | E106: 加價 | F106: 2729.20817 | G106: 4500
A107: 100 | D107: SUS304-1.5t發紋不銹鋼 鍍鈦 | E107: 加價 | F107: 6224.165395 | G107: 9500
A108: 101 | D108: SUS304-1.5t鏡面不銹鋼 | E108: 加價 | F108: 3527.681543 | G108: 7800
A109: 102 | D109: SUS304-1.5t鏡面不銹鋼 鍍鈦 | E109: 加價 | F109: 6708.48531 | G109: 12000
A110: 103 | D110: SUS304-1.5t鏡面不銹鋼 蝕刻 | E110: 加價 | F110: 5654.762251 | G110: 12000
A111: 104 | D111: SUS304-1.5t鏡面不銹鋼 蝕刻 鍍鈦 | E111: 加價 | F111: 7893.105642 | G111: 15000
A112: 105 | D112: 四周包邊玻璃層門SUS304-1.2t發紋不銹鋼 | E112: 加價 | F112: 15610.61947 | G112: 29000
A113: 106 | D113: 四周包邊玻璃層門SUS304-1.5t鏡面不銹鋼 | E113: 加價 | F113: 21587.25664 | G113: 38000
A114: 107 | B114: 廂門/層門加高200(標準：SUS304-1.5t發紋不銹鋼，高：2100) | D114: SUS304-1.2t發紋不銹鋼 | E114: 加價 | F114: -212.4955752 | G114: 2500
A115: 108 | B115: 廂門/層門加高200(標準：SUS304-1.5t發紋不銹鋼，高：2100) | D115: SUS304-1.5t發紋不銹鋼 | E115: 加價 | F115: 392.691823 | G115: 2500
A116: 109 | B116: 轎門2300mm （標準：噴塗或彩粧鋼板） | D116: SUS304-1.5t發紋不銹鋼 | E116: 加價 | F116: 3147 | G116: 7700
A117: 110 | B117: 轎門2300mm （標準：噴塗或彩粧鋼板） | D117: SUS304-1.2t發紋不銹鋼 | E117: 加價 | F117: 2685 | G117: 7300
A118: 111 | D118: SUS304-1.5t發紋不銹鋼 鍍鈦 | E118: 加價 | F118: 7499 | G118: 13500
A119: 112 | D119: SUS304-1.5t鏡面不銹鋼 | E119: 加價 | F119: 3531 | G119: 11970
A120: 113 | D120: SUS304-1.5t鏡面不銹鋼 鍍鈦 | E120: 加價 | F120: 8011 | G120: 15750
A121: 114 | D121: SUS304-1.5t鏡面不銹鋼 蝕刻 | E121: 加價 | F121: 6910 | G121: 15750
A122: 115 | D122: SUS304-1.5t鏡面不銹鋼 蝕刻 鍍鈦 | E122: 加價 | F122: 9168 | G122: 19000
A123: 116 | D123: 四周包邊玻璃轎門SUS304-1.2t發紋不銹鋼 | E123: 加價 | F123: 12736 | G123: 33000
A124: 117 | D124: 四周包邊玻璃轎門SUS304-1.5t鏡面不銹鋼 | E124: 加價 | F124: 15769 | G124: 42000
A125: 118 | B125: 層門2300mm （標準：噴塗Q235A-1.5t） | D125: SUS304-1.5t發紋不銹鋼 | E125: 加價 | F125: 3396.784269 | G125: 7700
A126: 119 | D126: 噴塗Q235A-1.2t | E126: 加價 | F126: 3158 | G126: 0
A127: 120 | D127: SUS304-1.2t發紋不銹鋼 | E127: 加價 | F127: 6126.20817 | G127: 7000
A128: 121 | D128: SUS304-1.5t發紋不銹鋼 鍍鈦 | E128: 加價 | F128: 9621.165395 | G128: 12000
A129: 122 | D129: SUS304-1.5t鏡面不銹鋼 | E129: 加價 | F129: 6924.681543 | G129: 10300
A130: 123 | D130: SUS304-1.5t鏡面不銹鋼 鍍鈦 | E130: 加價 | F130: 10105.48531 | G130: 14500
A131: 124 | D131: SUS304-1.5t鏡面不銹鋼 蝕刻 | E131: 加價 | F131: 9051.762251 | G131: 14500
A132: 125 | D132: SUS304-1.5t鏡面不銹鋼 蝕刻 鍍鈦 | E132: 加價 | F132: 11290.10564 | G132: 17500
A133: 126 | D133: 四周包邊玻璃層門SUS304-1.2t發紋不銹鋼 | E133: 加價 | F133: 19007.61947 | G133: 31500
A134: 127 | D134: 四周包邊玻璃層門SUS304-1.5t鏡面不銹鋼 | E134: 加價 | F134: 24984.25664 | G134: 40500
A135: 128 | B135: 臨時層門 | D135: 冷軋板噴塗1.2t高度：2100 | E135: 加價 | F135: 1498.773791 | G135: 5200
A136: 129 | D136: 冷軋板噴塗1.2t高度：2300 | E136: 加價 | F136: 1590.401883 | G136: 5400
A137: 130 | B137: 追加臨時廂門 (烤漆) | D137: 冷軋板噴塗1.2t高度：2100 | E137: 加價 | F137: =G137*0.6 -> 3120 | G137: 5200
A138: 131 | B138: 追加臨時廂門 (烤漆) | D138: 冷軋板噴塗1.2t高度：2300 | E138: 加價 | F138: =G138*0.6 -> 3240 | G138: 5400
A139: 132 | B139: 廂門層門加高200(標準：噴塗Q235A-1.5t) | D139: 冷軋板噴塗1.2t | E139: 加價 | F139: -148.7469027 | G139: 2500
A140: 133 | B140: 廂門層門加高200(標準：噴塗Q235A-1.5t) | D140: 冷軋板噴塗1.5t | E140: 加價 | F140: 130.8972743 | G140: 2500
A141: A-2-6 轎壁(車廂側板)
A142: 134 | B142: 轎壁_P6-P9人乘 （前側+左右側+後側+車廂門） （標準：烤漆/彩妝） | D142: SUS304-1.5t 髮紋不銹鋼 | F142: =G134*0.6 -> 24300 | G142: 25200
A143: 135 | D143: SUS304-1.5t 髮紋不銹鋼 鍍鈦 | F143: =G135*0.6 -> 3120 | G143: 57750
A144: 136 | D144: SUS304-1.5t鏡面不銹鋼 | E144: 加價 | F144: 1570.767292 | G144: 40000
A145: 137 | D145: SUS304-1.5t鏡面不銹鋼 鍍鈦 | E145: 加價 | F145: 14856.84064 | G145: 66000
A146: 138 | D146: SUS304-1.5t鏡面不銹鋼 蝕刻 | E146: 加價 | F146: 13393.17112 | G146: 53000
A147: 139 | D147: SUS304-1.5t鏡面不銹鋼 蝕刻 鍍鈦 | E147: 加價 | F147: 20187.92963 | G147: 86000
A148: 140 | B148: 轎壁_大梯 （前側+左右側+後側+車廂門） （標準：烤漆/彩妝） | D148: SUS304-1.5t 髮紋不銹鋼 | E148: 加價 | F148: =G148*0.6 -> 16695 | G148: 27825
A149: 141 | D149: SUS304-1.5t 髮紋不銹鋼 鍍鈦 | E149: 加價 | F149: =G149*0.6 -> 54180 | G149: 90300
A150: 142 | D150: SUS304-1.5t鏡面不銹鋼 | E150: 加價 | F150: 35280 | G150: 58800
A151: 143 | D151: SUS304-1.5t鏡面不銹鋼 鍍鈦 | E151: 加價 | F151: 57600 | G151: 96000
A152: 144 | D152: SUS304-1.5t鏡面不銹鋼 蝕刻 | E152: 加價 | F152: 44730 | G152: 74550
A153: 145 | D153: SUS304-1.5t鏡面不銹鋼 蝕刻 鍍鈦 | E153: 加價 | F153: 71190 | G153: 118650
A154: 146 | B154: 轎廂淨高加高200（含加重） （標準：SUS304-1.5t發紋不銹鋼，淨高：2300） | D154: SUS304-1.5t發紋不銹鋼 | E154: 加價 | F154: 12600 | G154: 21000
A155: 147 | B155: 車廂特殊裝潢 （標準：SUS304-1.5t發紋不銹鋼，淨高：2300） | D155: 3側板中間片鏡面不銹鋼SUS304-1.5t， 其中後側板鏡面不銹鋼SUS304-1.5t需及閘同寬 | E155: 加價 | F155: 13250.37409 | G155: 22000
A156: 148 | B156: 側板單片特殊(烤漆→不鏽鋼) | D156: (烤漆→不鏽鋼髮紋) | F156: =G156*0.6 -> 2484 | G156: 4140
A157: 149 | B157: 側板單片特殊(烤漆→不鏽鋼) | D157: (烤漆→鏡面不鏽鋼) | F157: =G157*0.6 -> 3510 | G157: 5850
A158: 150 | B158: 側板單片特殊 | D158: (烤漆→不鏽鋼髮紋 鍍鈦) | F158: 4212 | G158: 7020
A159: 151 | B159: 側板單片特殊 | D159: (烤漆→鏡面 不鏽鋼 鍍鈦) | F159: 5022 | G159: 8370
A160: 152 | B160: 側板單片特殊 | D160: (烤漆→鏡面 不鏽鋼 蝕刻) | F160: 5022 | G160: 8370
A161: 153 | B161: 車廂前側 RT PANEL(髮紋不鏽鋼) | D161: P6~24人(不含廂門) | F161: 3240 | G161: 5400
A162: 154 | B162: 車廂前側 RT PANEL(髮紋不鏽鋼鍍鈦) | D162: P6~24人(不含廂門) | F162: 9072 | G162: 15120
A163: 155 | B163: 車廂前側 RT PANEL(鏡面不鏽鋼) | D163: P6~24人(不含廂門) | F163: 7074 | G163: 11790
A164: 156 | B164: OPB(前)側&CPI 烤漆→髮紋不鏽鋼 | D164: P6~24人(不含廂門) | F164: 3456 | G164: 5760
A165: 157 | B165: OPB(前)側&CPI 烤漆→仿鍍鈦 | D165: P6~24人(不含廂門) | F165: 2484 | G165: 4140
A166: 158 | B166: 側板單片特殊 | D166: 不鏽鋼髮紋(遠東特殊色) | F166: 16400 | G166: 14760
A167: 159 | B167: 側板單片特殊(CE→SH-E(遠東特殊色)) | D167: 不鏽鋼蝕刻(遠東特殊色) | F167: 23300 | G167: 20970
A168: 160 | B168: 側板單片特殊(CE→SM(遠東特殊色)) | D168: 鏡面不鏽鋼(遠東特殊色) | F168: 18100 | G168: 16290
A169: 161 | B169: 側板單片特殊(CE→SM-E(遠東特殊色)) | D169: CE→SM-E(遠東特殊色) | F169: 26600 | G169: 23940
A170: 162 | B170: 車廂前側 RT PANEL(SH鍍鈦遠東特殊色) | D170: P6~24人(不含廂門) | F170: 27300 | G170: 24570
A171: 163 | B171: 車廂前側 RT PANEL(SM鍍鈦遠東特殊色) | D171: P6~24人(不含廂門) | F171: 37900 | G171: 34110
A172: A-2-7 其他車廂內裝配件
A173: 164 | B173: 二合一光幕(標準門高2100) | E173: 加價 | F173: 4906.19469 | G173: 11000
A174: 165 | B174: 紫外線殺菌燈（型號：TL-16W）P社已有 | E174: 加價 | F174: 2217.6 | G174: 5700
A175: 166 | B175: 風扇出風口 | E175: 加價 | F175: 252 | G175: 1500
A176: 167 | B176: SHARP清淨機（臺灣） | E176: 加價 | F176: 27512 | G176: 45000
A177: 168 | B177: 冷氣（臺灣） | E177: 加價 | F177: 38024 | G177: 65000
A178: 169 | B178: 副操作盤 | E178: 加價 | F178: 5095.44 | G178: 13000
A179: 170 | B179: 語音合成裝置 | D179: 語音報站器 | E179: 加價 | F179: 1033.2 | G179: 4200
A180: 171 | B180: 車廂攝影機 | E180: 加價 | F180: 1338.053097 | G180: 12000
A181: 172 | B181: CCTV配線預留 | D181: 5C FV線材(標準) | E181: 加價 | G181: 13000
A182: 173 | B182: 無線遠端對講系統 | E182: 加價 | F182: 3978 | G182: 7500
A183: 174 | B183: 殘障電梯(殘障OPB、殘障IND、殘障扶手、後側鏡面、語音合成) | D183: 二、超過十層樓之各層樓地板面積之和達500平方公尺者需設置。 | E183: 加價 | F183: 7627.5 | G183: 35000
A184: 175 | B184: 開門延長 | D184: 三、超過十層樓之部分為樓梯間、昇降機間、機械室、裝飾塔、屋頂窗及其他類似用途之建築物不需設置。 | E184: 加價 | F184: 80.64 | G184: 1000
A185: 176 | B185: 刷卡機系統 | D185: MCTC-IC-A2 | E185: 加價 | F185: 4430.16 | G185: 12000
A186: 177 | B186: 多媒體屏 | D186: 13寸 | E186: 加價 | F186: 14616 | G186: 53000
A187: 178 | B187: 車廂側板附壁鉤 | D187: P6~P24人 | E187: 加價 | F187: =G187*0.6 -> 5400 | G187: 9000
A188: 179 | B188: 側板附壁鉤及保護掛毯(牛仔布) | D188: P6~P12人 | E188: 加價 | F188: =G188*0.6 -> 14958 | G188: 24930
A189: 180 | B189: 側板附壁鉤及保護掛毯(牛仔布) | D189: P13~P20人 | E189: 加價 | F189: 17172 | G189: 28620
A190: 181 | B190: 側板附壁鉤及保護掛毯(牛仔布) | D190: P24人 | E190: 加價 | F190: 19386 | G190: 32310
A191: 182 | B191: 明鏡嵌入式(僅車廂後側)預留10mm | D191: P6~P24人(不包含鏡子,單純因應側板特殊所需加工及設計費) | E191: 加價 | F191: 4860 | G191: 8100
A192: 183 | B192: 明鏡嵌入式(車廂三側)預留10mm | D192: P6~P24人(不包含鏡子,單純因應側板特殊所需加工及設計費) | E192: 加價 | F192: 9558 | G192: 15930
A193: 184 | B193: 凸面鏡 | D193: 千鳥,展望有殘障時加計 | E193: 加價 | F193: 864 | G193: 1440
A194: 185 | B194: 半身明鏡 | E194: 加價 | F194: 3186 | G194: 5310
A195: 186 | B195: 中間片全身明鏡 | E195: 加價 | F195: 3186 | G195: 5310
A196: 187 | B196: 車廂內法特殊 | D196: 客梯P6~P24人 | E196: 加價 | F196: 9450 | G196: 15750
A197: 188 | B197: 車廂內法特殊 | D197: 貨梯-1000kg~2000kg | E197: 加價 | F197: 15606 | G197: 26010
A198: 189 | B198: 車廂內法特殊 | D198: 貨梯-2500kg~3000kg | E198: 加價 | F198: 20196 | G198: 33660
A199: 190 | B199: 車廂附防撞板 不鏽鋼 | D199: P6~P12人 | E199: 加價 | F199: 15984 | G199: 26640
A200: 191 | B200: 車廂附防撞板 不鏽鋼 | D200: P13~P17人 | E200: 加價 | F200: 19224 | G200: 32040
... 8 more rows

Sheet A-3車廂外部
A1: A-3 車廂外部
A2: 序號 | B2: 名稱 | C2: 編號 | D2: 規格/備註 | E2: 配置 | F2: 成本(NT) | G2: 定價 | H2: 單位
A3: A-3-1 小門框
A4: 1 | B4: 小門框(標準：噴塗Q235A-1.5t) | D4: SUS304-1.5t發紋不銹鋼 | E4: 加價 | F4: 641.3966442 | G4: 1500 | H4: 停
A5: 2 | B5: 小門框(標準：噴塗Q235A-1.5t) | D5: 噴塗Q235A-1.2t | E5: 加價 | F5: -42.49911504 | G5: 0 | H5: 停
A6: 3 | B6: 小門框(標準：噴塗Q235A-1.5t) | D6: SUS304-1.2t發紋不銹鋼 | E6: 加價 | F6: 556.3134159 | G6: 1300 | H6: 停
A7: 4 | B7: 小門框(標準：噴塗Q235A-1.5t) | D7: SUS304-1.5t鏡面不銹鋼 | E7: 加價 | F7: 844.2874195 | G7: 2300 | H7: 停
A8: 5 | B8: 小門框(標準：噴塗Q235A-1.5t) | D8: SUS304-1.5t鏡面不銹鋼 鍍鈦 | E8: 加價 | F8: 1433.325154 | G8: 3500 | H8: 停
A9: 6 | B9: 小門框(標準：噴塗Q235A-1.5t) | D9: SUS304-1.5t鏡面不銹鋼 蝕刻 | E9: 加價 | F9: 1164.985742 | G9: 5000 | H9: 停
A10: 7 | B10: 小門框(標準：噴塗Q235A-1.5t) | D10: SUS304-1.5t鏡面不銹鋼 蝕刻 鍍鈦 | E10: 加價 | F10: 1727.844021 | G10: 7500 | H10: 停
A11: 8 | B11: 小型門框 髮紋不鏽鋼 鍍鈦 | D11: 2P-CO ≦OP-800~1100 | F11: =G11*0.6 -> 1242 | G11: 2070 | H11: 停
A12: 9 | B12: 小型門框 鏡面不鏽鋼 | D12: 2P-CO ≦OP-800~1100 | F12: =G12*0.6 -> 1188 | G12: 1980 | H12: 停
A13: 10 | B13: 小型門框 鏡面不鏽鋼 鍍鈦 | D13: 2P-CO ≦OP-800~1100 | F13: 1674 | G13: 2790 | H13: 停
A14: 11 | B14: 小型門框 髮紋不鏽鋼 | D14: 2P-CO≦OP-800~1100*2300H | F14: =G14*0.6 -> 378 | G14: 630 | H14: 停
A15: 12 | B15: 小型門框 仿鍍鈦烤漆 | D15: 2P-CO ≦OP-800~1100 | F15: 1350 | G15: 2250 | H15: 停
A16: 13 | B16: 大型門框 髮紋不鏽鋼HH=2100 A=240 | D16: OP-800~1100 A值≦380 | F16: 6426 | G16: 10710 | H16: 停
A17: 14 | B17: 大型門框 髮紋不鏽鋼鍍鈦 HH=2100 A=240 | D17: OP-800~1100 A值≦380 | F17: 10476 | G17: 17460 | H17: 停
A18: 15 | B18: 大型門框 鏡面不鏽鋼 HH=2100 A=240 | D18: OP-800~1100 A值≦380 | F18: 8532 | G18: 14220 | H18: 停
A19: 16 | B19: 大型門框 鏡面不鏽鋼 鍍鈦 HH=2100 A=240 | D19: OP-800~1100 A值≦380 | F19: 13068 | G19: 21780 | H19: 停
A20: 17 | B20: 大型門框 仿鍍鈦烤漆 HH=2100 A=240 | D20: OP-800~1100 A值≦380 | F20: 56160 | G20: 93600 | H20: 停
A21: 18 | B21: 小型門框附幕板 髮紋不鏽鋼 | D21: OP-800~1100 全高≦3000 | F21: 7290 | G21: 12150 | H21: 停
A22: 19 | B22: 小型門框附幕板 髮紋不鏽鋼 鍍鈦 | D22: OP-800~1100 全高≦3000 | F22: 11124 | G22: 18540 | H22: 停
A23: 20 | B23: 小型門框附幕板 鏡面不鏽鋼 | D23: OP-800~1100 全高≦3000 | F23: 9072 | G23: 15120 | H23: 停
A24: 21 | B24: 小型門框附幕板 鏡面不鏽鋼 鍍鈦 | D24: OP-800~1100 全高≦3000 | F24: 12744 | G24: 21240 | H24: 停
A25: 22 | B25: 小框附幕板 仿鍍鈦烤漆 | D25: OP-800~1100 全高≦3000 | F25: 7830 | G25: 13050 | H25: 停
A26: 23 | B26: 大型門框附幕板 髮紋不鏽鋼 | D26: OP-800~1100 全高≦3000 | F26: 15714 | G26: 26190 | H26: 停
A27: 24 | B27: 大型門框附幕板 髮紋不鏽鋼 鍍鈦 | D27: OP-800~1100 全高≦3000 | F27: 20682 | G27: 34470 | H27: 停
A28: 25 | B28: 大型門框附幕板 鏡面不鏽鋼 | D28: OP-800~1100 全高≦3000 | F28: 17442 | G28: 29070 | H28: 停
A29: 26 | B29: 大型門框附幕板 鏡面不鏽鋼 鍍鈦 | D29: OP-800~1100 全高≦3000 | F29: 22356 | G29: 37260 | H29: 停
A30: 27 | B30: 大框附幕板 仿鍍鈦烤漆 | D30: OP-800~1100 A值≦380 | F30: 12852 | G30: 21420 | H30: 停
A31: 28 | B31: 一體式門框 | D31: OP-800~1100全高≦3000 | F31: 12000 | G31: 5580 | H31: 停
A32: 29 | B32: 小型門框 髮紋不鏽鋼 鍍鈦 | D32: 2S-2P OP-1100~1200W | F32: =G32*0.6 -> 2376 | G32: 3960 | H32: 停
A33: 30 | B33: 小型門框 鏡面不鏽鋼 | D33: 2S-2P OP-1100~1200W | F33: =G33*0.6 -> 2052 | G33: 3420 | H33: 停
A34: 31 | B34: 小型門框 髮紋不鏽鋼 鍍鈦 | D34: 2S-2P OP-1100~1200W | F34: 2376 | G34: 3960 | H34: 停
A35: 32 | B35: 大型門框 髮紋不鏽鋼 | D35: 2S-1100.1200 A值≦380 | F35: 6372 | G35: 10620 | H35: 停
A36: 33 | B36: 大型門框 髮紋不鏽鋼 鍍鈦 | D36: 2S-1100.1200 A值≦380 | F36: 11016 | G36: 18360 | H36: 停
A37: 34 | B37: 大型門框 鏡面不鏽鋼 | D37: 2S-1100.1200 A值≦380 | F37: 9990 | G37: 16650 | H37: 停
A38: 35 | B38: 大型門框 鏡面不鏽鋼 鍍鈦 | D38: 2S-1100.1200 A值≦380 | F38: 13392 | G38: 22320 | H38: 停
A39: 36 | B39: 大型門框 髮紋不鏽鋼 | D39: 2S-1400~1700W A值≦380 | F39: 7614 | G39: 12690 | H39: 停
A40: 37 | B40: 大型門框 髮紋不鏽鋼 | D40: 4C-1700~2300W A值≦380 | F40: 11772 | G40: 19620 | H40: 停
B41: 小型門框 SH鍍鈦(遠東特殊色) | D41: 2P-CO ≦OP-800~1100 | F41: =G41*0.6 -> 2214 | G41: 3690 | H41: =F41-G41 -> -1476
B42: 小型門框 SM鍍鈦(遠東特殊色) | D42: 2P-CO ≦OP-800~1100 | F42: =G42*0.6 -> 2592 | G42: 4320 | H42: -1728
B43: 小型門框 亂紋鍍鈦(遠東特殊色) | D43: 2P-CO ≦OP-800~1100 | F43: 4698 | G43: 7830 | H43: -3132
B44: 小型門框 霧珠鍍鈦(遠東特殊色) | D44: 2P-CO ≦OP-800~1100 | F44: 4806 | G44: 8010 | H44: -3204
B45: 大型門框 SH鍍鈦(遠東特殊色) | D45: OP-800~1100 A值≦380 | F45: 16902 | G45: 28170 | H45: -11268
B46: 大型門框 SM鍍鈦(遠東特殊色) | D46: OP-800~1100 A值≦380 | F46: 19494 | G46: 32490 | H46: -12996
B47: 大型門框 亂紋鍍鈦(遠東特殊色) | D47: OP-800~1100 A值≦380 | F47: 20682 | G47: 34470 | H47: -13788
B48: 大型門框 霧珠鍍鈦(遠東特殊色) | D48: OP-800~1100 A值≦380 | F48: 20898 | G48: 34830 | H48: -13932
B49: 小框附幕板 SH鍍鈦(遠東特殊色) | D49: OP-800~1100 全高≦3000 | F49: 15552 | G49: 25920 | H49: -10368
B50: 小框附幕板 SM鍍鈦(遠東特殊色) | D50: OP-800~1100 全高≦3000 | F50: 17064 | G50: 28440 | H50: -11376
B51: 小框附幕板 亂紋鍍鈦(遠東特殊色) | D51: OP-800~1100 全高≦3000 | F51: 17874 | G51: 29790 | H51: -11916
B52: 小框附幕板 霧珠鍍鈦(遠東特殊色) | D52: OP-800~1100 全高≦3000 | F52: 18036 | G52: 30060 | H52: -12024
B53: 大框附幕板 SH鍍鈦(遠東特殊色) | D53: OP-800~900 全高≦3000 | F53: 29808 | G53: 49680 | H53: -19872
B54: 大框附幕板 SM鍍鈦(遠東特殊色) | D54: OP-800~900 全高≦3000 | F54: 31428 | G54: 52380 | H54: -20952
B55: 大框附幕板 SH鍍鈦(遠東特殊色) | D55: OP-1000~1100全高≦3000 | F55: 30402 | G55: 50670 | H55: -20268
B56: 大框附幕板 SM鍍鈦(遠東特殊色) | D56: OP-1000~1100全高≦3000 | F56: 33966 | G56: 56610 | H56: -22644
B57: 大框附幕板 亂紋鍍鈦(遠東特殊色) | D57: OP-800~900 A值≦380 | F57: 33264 | G57: 55440 | H57: -22176
B58: 大框附幕板 亂紋鍍鈦(遠東特殊色) | D58: OP-1000~1100 A值≦380 | F58: 36126 | G58: 60210 | H58: -24084
B59: 大框附幕板 霧珠鍍鈦(遠東特殊色) | D59: OP-800~900 A值≦380 | F59: 33534 | G59: 55890 | H59: -22356
B60: 大框附幕板 霧珠鍍鈦(遠東特殊色) | D60: OP-1000~1100 A值≦380 | F60: 36396 | G60: 60660 | H60: -24264
B61: 小型門框 SH鍍鈦(遠東特殊色) | D61: 2S-2P OP-1100~1200W | F61: 4806 | G61: 8010 | H61: -3204
B62: 小型門框 SM鍍鈦(遠東特殊色) | D62: 2S-2P OP-1100~1200W | F62: 5508 | G62: 9180 | H62: =F62-G62 -> -3672
B63: 大型門框 SH鍍鈦(遠東特殊色) | D63: 2S-1100.1200 A值≦380 | F63: 18144 | G63: 30240 | H63: =F63-G63 -> -12096
B64: 大型門框 SM鍍鈦(遠東特殊色) | D64: 2S-1100.1200 A值≦380 | F64: 20520 | G64: 34200 | H64: =F64-G64 -> -13680
A65: A-3-2 外呼(乘場指示器)
A66: 38 | B66: 外呼 | C66: MF001 | D66: 不銹鋼有底盒 | E66: 標配 | F66: 0 | H66: 停
A67: 39 | B67: 外呼 | C67: MF002 | D67: 並聯不銹鋼有底盒 | E67: 選配 | F67: 789.4513274 | G67: 1600 | H67: 停
A68: 40 | B68: 外呼 | C68: MF003 | D68: 不銹鋼無底盒 | E68: 選配 | F68: 0 | H68: 停
A69: 41 | B69: 外呼 | C69: MF004 | D69: 並聯不銹鋼無底盒 | E69: 選配 | F69: 227.4690265 | G69: 525 | H69: 停
A70: 42 | B70: 外呼 | C70: MF005 | D70: 液晶無底盒 | E70: 選配 | F70: 762.6902655 | G70: 1600 | H70: 停
A71: 43 | B71: 外呼 | C71: MF006 | D71: 液晶無底盒 | E71: 選配 | F71: 762.6902655 | G71: 1800 | H71: 停
A72: 44 | B72: 外呼 | C72: MF007 | D72: 殘障有底盒附盲文點字板 | E72: 選配 | F72: 414.7964602 | G72: 1000 | H72: 停
A73: 45 | B73: 外呼 | C73: MF008 | D73: 殘障並聯有底盒附盲文點字板 | E73: 選配 | F73: 1239.929204 | G73: 2500 | H73: 停
A74: 46 | B74: 外呼 | C74: MF009 | D74: 殘障並聯手勢呼梯有底盒附盲文點字板 | E74: 選配 | F74: 1342.513274 | G74: 2700 | H74: 停
A75: 47 | B75: 外呼 | C75: MF010 | D75: 手勢呼梯有底盒 | E75: 選配 | F75: 499.539823 | G75: 1050 | H75: 停
A76: 48 | B76: 外呼 | C76: MF011 | D76: 殘障無底盒附盲文點字板和MF012搭配用 | E76: 選配 | F76: 13.38053097 | G76: 500 | H76: 停
A77: 49 | B77: 外呼 | C77: MF012 | D77: 殘障無底盒和MF011搭配用 | E77: 選配 | F77: 303.2920354 | G77: 500 | H77: 停
A78: 50 | B78: 外呼 | C78: MF013 | D78: 無接觸式外呼 | E78: 選配 | F78: 3269.309735 | G78: 4500 | H78: 停
A79: 51 | B79: 外呼 | C79: MF014 | D79: 殘障+手勢呼梯有底盒附盲文點字板 | E79: 選配 | F79: 517.380531 | G79: 1500 | H79: 停
A80: 52 | B80: 外呼 | C80: MF015 | D80: 殘障有底盒和MF001搭配用 | E80: 選配 | F80: 334.5132743 | G80: 1000 | H80: 停
A81: 53 | B81: 外呼 | C81: MF016 | D81: 殘障有底盒 | E81: 選配 | F81: 365.7345133 | G81: 1000 | H81: 停
A82: 54 | B82: 外呼 | C82: MF017 | D82: 殘障手勢呼梯有底盒 | E82: 選配 | F82: 463.8584071 | G82: 1000 | H82: 停
A83: 55 | B83: 外呼 | C83: MF018 | D83: 手勢呼梯有底盒附盲文點字板 | E83: 選配 | F83: 102.5840708 | G83: 400 | H83: 停
A84: 56 | B84: 外呼 | C84: MF019 | D84: 並聯殘障有底盒附盲文點字板，左側 | E84: 選配 | F84: 1373.734513 | G84: 2800 | H84: 停
A85: 57 | B85: 外呼 | C85: MF020 | D85: 並聯殘障有底盒附盲文點字板，右側 | E85: 選配 | F85: 1373.734513 | G85: 2800 | H85: 停
A86: 58 | B86: 外呼 | C86: MF021 | D86: 無底盒 | E86: 選配 | F86: 160.5663717 | G86: 400 | H86: 停
A87: 59 | B87: 外呼 | C87: MF022 | D87: 無底盒帶手勢呼梯 | E87: 選配 | F87: 182.8672566 | G87: 400 | H87: 停
A88: 60 | B88: 群管裡(2台聯動) | E88: 選配 | F88: =G88*0.6 -> 4740 | G88: 7900 | H88: 群
A89: 61 | B89: 群管理 (3~8台/群) | D89: 3~8台群管理(無群管理盤) | E89: 選配 | F89: =G89*0.6 -> 33780 | G89: 56300 | H89: 群
A90: 62 | B90: 人流管控(群) | D90: 僅限一層樓(一般為大廳) | E90: 選配 | G90: 特殊詢價 | H90: 群
A91: A-3-3 到站燈
A92: 63 | B92: 到站燈 | C92: MG001 | E92: 選配 | F92: 1110.584071 | G92: 2500 | H92: 停
A93: 64 | B93: 到站燈 | C93: MG002 | E93: 選配 | F93: 1110.584071 | G93: 2500 | H93: 停
A94: 65 | B94: 到站燈 | C94: MG003 | E94: 選配 | F94: 2872.353982 | G94: 6000 | H94: 停
A95: 66 | B95: 到站燈 | C95: MG004 | E95: 選配 | F95: 1436.176991 | G95: 2900 | H95: 停
A96: 67 | B96: 到站燈 | C96: MG005 | E96: 選配 | F96: 1855.433628 | G96: 4000 | H96: 停
A97: 68 | B97: 到站燈 | C97: MG006 | E97: 選配 | F97: 2368.353982 | G97: 5500 | H97: 停
A98: A-3-4 門開方式與門
A99: 69 | B99: 2P-CO→2S-2P(台) | D99: P6~24人(OP≦1100) | E99: 加價 | F99: =G99*0.6 -> 4800 | G99: 8000 | H99: 台
A100: 70 | B100: 2P-CO→2S-2P(停) | D100: P6~24人(OP≦1100) | E100: 加價 | F100: =G100*0.6 -> 3000 | G100: 5000 | H100: 停
A101: 71 | B101: 貫通門-轎廂（轎門標準SUS304-1.5t） | D101: SUS304-1.5t | E101: 加價 | F101: 15469.67788 | G101: 85000 | H101: 台
A102: 72 | D102: 冷軋板噴塗1.5t | E102: 加價 | F102: 13089.72743 | G102: 80000 | H102: 台
A103: 73 | B103: 貫通門-乘場（層門門框標準Q235A-1.5t） | D103: 冷軋板噴塗1.5t | E103: 加價 | F103: 4164.913274 | G103: 9000 | H103: 停
A104: 74 | D104: SUS304-1.5t | E104: 加價 | F104: 8151.330265 | G104: 15000 | H104: 停
A105: 75 | B105: 千鳥型 | D105: P9人 | E105: 加價 | F105: =G105*0.6 -> 7800 | G105: 13000 | H105: 台
A106: 76 | B106: 千鳥型 | D106: P10~P11人 | E106: 加價 | F106: =G106*0.6 -> 9600 | G106: 16000 | H106: 台
A107: 77 | B107: 千鳥型 | D107: P12~P15人 | E107: 加價 | F107: 9000 | G107: 15000 | H107: 台
A108: 78 | B108: 千鳥型 | D108: P17~P24人 | E108: 加價 | F108: 79200 | G108: 132000 | H108: 台
A109: 79 | B109: L型千鳥 | D109: P9人 | E109: 加價 | F109: 195000 | G109: 325000 | H109: 台
A110: 80 | B110: L型千鳥 | D110: P10~P11人 | E110: 加價 | F110: 216000 | G110: 360000 | H110: 台
A111: 81 | B111: L型千鳥 | D111: P12~P15人 | E111: 加價 | F111: 204000 | G111: 340000 | H111: 台
A112: 82 | B112: 千鳥型 | D112: 貨梯1000kg~2000kg | E112: 加價 | F112: 90000 | G112: 150000 | H112: 台
A113: 83 | B113: 千鳥型 | D113: 貨梯2500kg~3000kg | E113: 加價 | F113: 120000 | G113: 200000 | H113: 台
A114: 87 | B114: 防火門(停)(2P-CO) | D114: 不鏽鋼 | E114: 加價 | F114: 15600 | G114: 26000 | H114: 停

Sheet A-4控制與其他
A1: A-4 控制與其他
A2: 序號 | B2: 名稱 | C2: 編號 | D2: 規格/備註 | E2: 配置 | F2: 成本(NT) | G2: 定價
A3: A-4-1 功能與配置
A4: 1 | B4: 專用運轉 | D4: 操作電梯，可提供客戶做專用運轉(例：看來車廂人滿了,直接經過外面叫車之樓層，直接到達服務樓層 | E4: 加價 | F4: =G4*0.6 -> 720 | G4: 1200
A5: 2 | B5: 車廂追加到樓鈴 | D5: 到樓鈴: 電子 | E5: 加價 | F5: =G5*0.6 -> 1500 | G5: 2500
A6: 3 | B6: 乘場追加到樓鈴 | D6: 到樓鈴: 電子 | E6: 加價 | F6: 780 | G6: 1300
A7: 4 | B7: 對講機配線至管理員室以100M計(不含配管) | E7: 加價 | F7: 10500 | G7: 17500
A8: 5 | B8: 對講機線材100M計 | E8: 加價 | F8: 6720 | G8: 11200
A9: 6 | B9: 車廂預留電話機接點 | D9: 僅接點預留 | E9: 加價 | F9: 8040 | G9: 13400
A10: 7 | B10: 追加電話機(工廠配合留孔) | E10: 加價 | F10: 420 | G10: 700
A11: 8 | B11: 追加電話機(工事現地配合鑽孔) | D11: 針對現地配合的人工費用 | E11: 加價 | F11: 4200 | G11: 7000
A12: 9 | B12: 車廂預留刷卡機接點 | D12: 僅接點預留 | E12: 加價 | F12: 6000 | G12: 10000
A13: 10 | B13: 車廂預留刷卡機接點+面板開孔 | D13: 僅接點預留&面板留孔 | E13: 加價 | F13: 9480 | G13: 15800
A14: 11 | B14: 遠隔監控 (組) | D14: 1~7台/組 (配賦於第1台) | E14: 加價 | F14: 9480 | G14: 15800
A15: 12 | B15: 遠隔監控工事配線費(EAS) | E15: 加價 | F15: 3780 | G15: 6300
A16: 13 | B16: 物聯網(BY工務購買) | D16: 1~4台/組用, 5~8台/2組 | E16: 加價 | F16: 10860 | G16: 18100
A17: 14 | B17: 廂內監控(需搭配物聯網) | D17: 物聯網費用需另計 | E17: 加價 | F17: 116820 | G17: 194700
A18: 15 | B18: 直話機系統 | D18: 與車廂內"緊急呼叫"共用按鈕 1.按下3秒內,為一般緊急呼叫,可與升降道外對講 2.按著超過3秒以上,則直接撥通電話至設定的第一組號碼(一般來說可設置6組號碼)，無人接聽時往下一組號碼撥號 (需請客戶申請市話，方能用電話線接進去，需預先錄製語音) 適用:EAS,VAG | E18: 加價 | F18: 9480 | G18: 15800
A19: 16 | B19: 火警受信運轉 | D19: WL432 | E19: 加價 | F19: 4334.4 | G19: 6300
A20: 17 | B20: 火災管制 | D20: 火災管制：當兩台電梯聯動時，其中一台為緊急用電梯，則隔壁台需有火災管制功能 | E20: 加價 | F20: =G20*0.6 -> 2880 | G20: 4800
A21: 18 | B21: 緊急用 | D21: 緊急用：一、建築物高度超過十層樓以上部分之最大一層樓地板面積，在1500平方公尺以下者，至少應設置一座：超過1500平方公尺時，每達3000平方公尺，增設一座。 | E21: 加價 | F21: =G21*0.6 -> 10200 | G21: 17000
A22: 19 | B22: ARD | D22: 四、超過十層樓之各層樓地板面積之和未達500平方公尺者不需設置。 | E22: 加價 | F22: 7156.8 | G22: 30000
A23: 20 | B23: 停機操作 | E23: 加價 | F23: 100.8 | G23: 500
A24: 21 | B24: 滿載直駛 | D24: 操作盤檢修增加直駛開關非標加價 | E24: 加價 | F24: 1008 | G24: 3000
A25: 22 | B25: 能量回饋 | E25: 加價 | F25: 14822.64 | G25: 42000
A26: 23 | B26: 對重附安全鉗（包含限速器等） | D26: P8-P15 | E26: 加價 | F26: 15610.61947 | G26: 42000
A27: 24 | B27: 對重附安全鉗（包含限速器等） | D27: P17 | F27: =G27*0.6 -> 37800 | G27: 63000
A28: 25 | B28: 對重附安全鉗（包含限速器等） | D28: P24 | F28: =G28*0.6 -> 44100 | G28: 73500
A29: 26 | B29: 井道頂部追加防沖梁 | E29: 加價 | F29: 2520 | G29: 6500
A30: 27 | B30: 人臉識別 | E30: 加價 | F30: =G30*0.6 -> 39000 | G30: 65000
B31: 地震感知器 | F31: 40000 | G31: 40000
A32: A-4-2 OH與樓高
A33: 28 | B33: OH ≧7.5M | D33: P6~P11人 | E33: 加價 | F33: =G33*0.6 -> 9300 | G33: 15500
A34: 29 | B34: OH ≧7.5M | D34: P12~P15人 | E34: 加價 | F34: =G34*0.6 -> 10140 | G34: 16900
A35: 30 | B35: OH ≧7.5M | D35: P17~P24人 | E35: 加價 | F35: 12120 | G35: 20200
A36: 31 | B36: OH ≧7.5M | D36: B-750~1000kg | E36: 加價 | F36: 11040 | G36: 18400
A37: 32 | B37: OH ≧7.5M | D37: F-1000kg | E37: 加價 | F37: 12420 | G37: 20700
A38: 33 | B38: OH ≧7.5M | D38: F-1500~2000kg | E38: 加價 | F38: 15300 | G38: 25500
A39: 34 | B39: OH ≧7.5M | D39: F-2500~3000kg | E39: 加價 | F39: 21180 | G39: 35300
A40: 35 | B40: OH 超過6M | E40: 加價 | F40: 3780 | G40: 6300
A41: 36 | B41: OH>5M,追加吊樑施工 | D41: 僅VAG無機房機種 | E41: 加價 | F41: 3780 | G41: 6300
A42: 37 | B42: 樓高 ≧ 6M | D42: P6~P11人 | E42: 加價 | F42: 8280 | G42: 13800
A43: 38 | B43: 樓高 ≧ 6M | D43: P12~P15人 | E43: 加價 | F43: 9060 | G43: 15100
A44: 39 | B44: 樓高 ≧ 6M | D44: P17~P24人 | E44: 加價 | F44: 11160 | G44: 18600
A45: 40 | B45: 樓高 ≧ 6M | D45: B-750~1000kg | E45: 加價 | F45: 10080 | G45: 16800
A46: 41 | B46: 樓高 ≧ 6M | D46: F-1000kg | E46: 加價 | F46: 11520 | G46: 19200
A47: 42 | B47: 樓高 ≧ 6M | D47: F-1500~2000kg | E47: 加價 | F47: 14340 | G47: 23900
A48: 43 | B48: 樓高 ≧ 6M | D48: F-2500~3000kg | E48: 加價 | F48: 20280 | G48: 33800
